[Event "*** Titled Tuesday Blitz"]
[Site "Chess.com"]
[Date "2020.04.28"]
[Round "9"]
[White "GM_DarwinLaylo"]
[Black "northridgehawk"]
[Result "1-0"]
[WhiteElo "2536"]
[BlackElo "2299"]
[TimeControl "180+1"]
[EndTime "11:44:37 PDT"]
[Termination "GM_DarwinLaylo won by resignation"]

1. c4 {[%clk 0:02:59.9]} 1... Nf6 {[%clk 0:02:57.6]} 2. Nc3 {[%clk 0:02:59.2]}
2... d5 {[%clk 0:02:56.8]} 3. cxd5 {[%clk 0:02:58.7]} 3... Nxd5 {[%clk
0:02:57.7]} 4. g3 {[%clk 0:02:56.4]} 4... g6 {[%clk 0:02:50.8]} 5. Bg2 {[%clk
0:02:56.6]} 5... Nb6 {[%clk 0:02:49.8]} 6. h4 {[%clk 0:02:56.3]} 6... Bg7 {[%clk
0:02:48.7]} 7. h5 {[%clk 0:02:56]} 7... c5 {[%clk 0:02:44.1]} 8. h6 {[%clk
0:02:55.8]} 8... Bf6 {[%clk 0:02:43.8]} 9. Ne4 {[%clk 0:02:54.7]} 9... Be5
{[%clk 0:02:42]} 10. Nxc5 {[%clk 0:02:52.8]} 10... Nc6 {[%clk 0:02:42.5]} 11.
Nf3 {[%clk 0:02:52]} 11... Bb8 {[%clk 0:02:40.7]} 12. b3 {[%clk 0:02:47.1]}
12... e5 {[%clk 0:02:40.2]} 13. Bb2 {[%clk 0:02:46.6]} 13... f6 {[%clk
0:02:40.4]} 14. d3 {[%clk 0:02:44.7]} 14... O-O {[%clk 0:02:39.9]} 15. a3 {[%clk
0:02:39.6]} 15... a5 {[%clk 0:02:38.7]} 16. Rc1 {[%clk 0:02:36.1]} 16... Qe7
{[%clk 0:02:35.9]} 17. O-O {[%clk 0:02:35]} 17... Bd6 {[%clk 0:02:30.3]} 18. b4
{[%clk 0:02:31.4]} 18... axb4 {[%clk 0:02:30]} 19. axb4 {[%clk 0:02:30.9]} 19...
Kh8 {[%clk 0:01:54.3]} 20. Qb3 {[%clk 0:02:28.5]} 20... Nd7 {[%clk 0:01:47.7]}
21. Nxd7 {[%clk 0:02:17.9]} 21... Bxd7 {[%clk 0:01:48.6]} 22. b5 {[%clk
0:02:15.4]} 22... Na5 {[%clk 0:01:46.2]} 23. Qa4 {[%clk 0:02:08.2]} 23... Nc4
{[%clk 0:01:37.2]} 24. Qxc4 {[%clk 0:02:06.9]} 24... Be6 {[%clk 0:01:35.4]} 25.
Qh4 {[%clk 0:02:01.5]} 25... Ra2 {[%clk 0:01:32.1]} 26. Rb1 {[%clk 0:01:55.2]}
26... Rc8 {[%clk 0:01:20]} 27. Nxe5 {[%clk 0:01:52.5]} 27... g5 {[%clk
0:01:17.8]} 28. Qe4 {[%clk 0:01:50.7]} 28... Rxb2 {[%clk 0:01:15.1]} 29. Ng6+
{[%clk 0:01:43.1]} 29... hxg6 {[%clk 0:01:13.1]} 30. Rxb2 {[%clk 0:01:43.1]}
30... Rc7 {[%clk 0:01:08.7]} 31. Qxg6 {[%clk 0:01:41.1]} 31... Be5 {[%clk
0:01:04.7]} 32. b6 {[%clk 0:01:34.9]} 32... Bxb2 {[%clk 0:00:59.9]} 33. bxc7
{[%clk 0:01:33.8]} 33... Qxc7 {[%clk 0:01:00.8]} 34. Qe8+ {[%clk 0:01:32.6]}
34... Bg8 {[%clk 0:01:00.8]} 35. Bd5 {[%clk 0:01:32]} 35... Qh7 {[%clk 0:00:58]}
36. Rb1 {[%clk 0:01:30.7]} 1-0

[Event "*** Titled Tuesday Blitz"]
[Site "Chess.com"]
[Date "2020.04.28"]
[Round "9"]
[White "CMFernandez"]
[Black "fridaywins"]
[Result "1/2-1/2"]
[WhiteElo "2077"]
[BlackElo "2238"]
[TimeControl "180+1"]
[EndTime "11:44:41 PDT"]
[Termination "Game drawn by repetition"]

1. d4 {[%clk 0:03:00.9]} 1... Nf6 {[%clk 0:02:56.3]} 2. c4 {[%clk 0:03:00.3]}
2... c5 {[%clk 0:02:56.5]} 3. d5 {[%clk 0:02:59.9]} 3... e5 {[%clk 0:02:55.7]}
4. Nc3 {[%clk 0:02:57.7]} 4... d6 {[%clk 0:02:55.4]} 5. g3 {[%clk 0:02:57.8]}
5... Be7 {[%clk 0:02:55.9]} 6. Bg2 {[%clk 0:02:58.2]} 6... O-O {[%clk
0:02:56.7]} 7. e4 {[%clk 0:02:58.3]} 7... Ne8 {[%clk 0:02:56.3]} 8. Nge2 {[%clk
0:02:58.1]} 8... f5 {[%clk 0:02:52.8]} 9. f3 {[%clk 0:02:57.6]} 9... fxe4 {[%clk
0:02:52.7]} 10. Nxe4 {[%clk 0:02:57.3]} 10... Nf6 {[%clk 0:02:51.6]} 11. N2c3
{[%clk 0:02:56.5]} 11... Nxe4 {[%clk 0:02:51]} 12. Nxe4 {[%clk 0:02:55.2]} 12...
Bf5 {[%clk 0:02:51]} 13. O-O {[%clk 0:02:55.2]} 13... Bxe4 {[%clk 0:02:50.4]}
14. fxe4 {[%clk 0:02:55]} 14... Rxf1+ {[%clk 0:02:49.7]} 15. Qxf1 {[%clk
0:02:54.7]} 15... Bg5 {[%clk 0:02:48.9]} 16. Bh3 {[%clk 0:02:54.2]} 16... Bxc1
{[%clk 0:02:47.4]} 17. Qxc1 {[%clk 0:02:53.9]} 17... Nd7 {[%clk 0:02:46]} 18.
Be6+ {[%clk 0:02:53.8]} 18... Kh8 {[%clk 0:02:45.9]} 19. Qe3 {[%clk 0:02:53.5]}
19... Nf6 {[%clk 0:02:42]} 20. Rf1 {[%clk 0:02:52.2]} 20... Qe7 {[%clk
0:02:42.1]} 21. g4 {[%clk 0:02:51.1]} 21... Rf8 {[%clk 0:02:41.8]} 22. Qf3
{[%clk 0:02:44.1]} 22... Nd7 {[%clk 0:02:32.8]} 23. Qg2 {[%clk 0:02:43.3]} 23...
Rxf1+ {[%clk 0:02:31.5]} 24. Qxf1 {[%clk 0:02:43.4]} 24... Nf6 {[%clk
0:02:20.2]} 25. Qf3 {[%clk 0:02:43.2]} 25... g6 {[%clk 0:02:17.8]} 26. h4 {[%clk
0:02:36.1]} 26... Kg7 {[%clk 0:02:17.3]} 27. h5 {[%clk 0:02:35.5]} 27... Ne8
{[%clk 0:02:09.1]} 28. hxg6 {[%clk 0:02:25.3]} 28... hxg6 {[%clk 0:02:08.5]} 29.
Kg2 {[%clk 0:02:25]} 29... Nc7 {[%clk 0:02:07.8]} 30. Bc8 {[%clk 0:02:20.8]}
30... b5 {[%clk 0:02:07.9]} 31. cxb5 {[%clk 0:02:18.9]} 31... Nxb5 {[%clk
0:02:08.1]} 32. Qg3 {[%clk 0:02:13.6]} 32... Qg5 {[%clk 0:02:04.3]} 33. Be6
{[%clk 0:02:10.3]} 33... Nd4 {[%clk 0:02:04.2]} 34. Qa3 {[%clk 0:02:05.7]} 34...
Qd2+ {[%clk 0:02:02.1]} 35. Kh3 {[%clk 0:02:05.3]} 35... Kf6 {[%clk 0:01:55.4]}
36. Qxa7 {[%clk 0:01:57.3]} 36... Qe3+ {[%clk 0:01:53.6]} 37. Kg2 {[%clk
0:01:45]} 37... Qxe4+ {[%clk 0:01:52.9]} 38. Kh2 {[%clk 0:01:44.5]} 38... Nf3+
{[%clk 0:01:50.7]} 39. Kh3 {[%clk 0:01:40.7]} 39... Ng5+ {[%clk 0:01:49]} 40.
Kh4 {[%clk 0:01:41]} 40... Qh1+ {[%clk 0:01:46.3]} 41. Kg3 {[%clk 0:01:40.4]}
41... Qf3+ {[%clk 0:01:46.4]} 42. Kh2 {[%clk 0:01:39.5]} 42... Qh3+ {[%clk
0:01:44]} 43. Kg1 {[%clk 0:01:39]} 43... Qg3+ {[%clk 0:01:42.2]} 44. Kf1 {[%clk
0:01:38.7]} 44... Qf3+ {[%clk 0:01:42.2]} 45. Ke1 {[%clk 0:01:38.1]} 45... Qe3+
{[%clk 0:01:43.1]} 46. Kd1 {[%clk 0:01:37.7]} 46... Nxe6 {[%clk 0:01:43.4]} 47.
dxe6 {[%clk 0:01:36.2]} 47... Kxe6 {[%clk 0:01:42.2]} 48. Qb8 {[%clk 0:01:34]}
48... Qd3+ {[%clk 0:01:40.5]} 49. Kc1 {[%clk 0:01:33.7]} 49... Qf1+ {[%clk
0:01:39.7]} 50. Kc2 {[%clk 0:01:33.8]} 50... Qe2+ {[%clk 0:01:40.2]} 51. Kc1
{[%clk 0:01:34]} 51... Qe3+ {[%clk 0:01:39.1]} 52. Kc2 {[%clk 0:01:33.6]} 52...
Kd5 {[%clk 0:01:39.3]} 53. Qg8+ {[%clk 0:01:31.1]} 53... Kd4 {[%clk 0:01:38.4]}
54. Qxg6 {[%clk 0:01:29.9]} 54... d5 {[%clk 0:01:35.6]} 55. a4 {[%clk
0:01:27.8]} 55... e4 {[%clk 0:01:34.4]} 56. Qf6+ {[%clk 0:01:22.9]} 56... Kc4
{[%clk 0:01:33.8]} 57. Qa6+ {[%clk 0:01:22.4]} 57... Kd4 {[%clk 0:01:32.4]} 58.
Qf6+ {[%clk 0:01:21.3]} 58... Kc4 {[%clk 0:01:32.8]} 59. Qa6+ {[%clk 0:01:16]}
59... Kd4 {[%clk 0:01:31]} 60. Qf6+ {[%clk 0:01:13.8]} 1/2-1/2

[Event "*** Titled Tuesday Blitz"]
[Site "Chess.com"]
[Date "2020.04.28"]
[Round "9"]
[White "RaunakSadhwani2005"]
[Black "stanyga"]
[Result "1-0"]
[WhiteElo "2884"]
[BlackElo "2700"]
[TimeControl "180+1"]
[EndTime "11:44:45 PDT"]
[Termination "RaunakSadhwani2005 won by resignation"]

1. e4 {[%clk 0:03:00.9]} 1... c5 {[%clk 0:02:58.5]} 2. Nc3 {[%clk 0:03:00.3]}
2... Nc6 {[%clk 0:02:56.8]} 3. Bb5 {[%clk 0:03:00.6]} 3... Nd4 {[%clk 0:02:56]}
4. Nf3 {[%clk 0:03:00.5]} 4... Nxb5 {[%clk 0:02:51.8]} 5. Nxb5 {[%clk
0:03:01.4]} 5... g6 {[%clk 0:02:49.5]} 6. d4 {[%clk 0:02:59.7]} 6... Bg7 {[%clk
0:02:46.5]} 7. Nc3 {[%clk 0:02:54.4]} 7... cxd4 {[%clk 0:02:44.6]} 8. Nxd4
{[%clk 0:02:55.3]} 8... d6 {[%clk 0:02:45.1]} 9. Be3 {[%clk 0:02:54.9]} 9... Nf6
{[%clk 0:02:45]} 10. f3 {[%clk 0:02:53.8]} 10... O-O {[%clk 0:02:41]} 11. Qd2
{[%clk 0:02:53.6]} 11... Re8 {[%clk 0:02:26.6]} 12. Bh6 {[%clk 0:02:48.2]} 12...
Bh8 {[%clk 0:02:25.5]} 13. O-O-O {[%clk 0:02:45.6]} 13... b5 {[%clk 0:02:11.8]}
14. h4 {[%clk 0:02:20.4]} 14... b4 {[%clk 0:02:06.9]} 15. Nce2 {[%clk
0:02:19.9]} 15... Qa5 {[%clk 0:01:55.1]} 16. Kb1 {[%clk 0:02:19]} 16... Bd7
{[%clk 0:01:46.2]} 17. h5 {[%clk 0:02:18.3]} 17... Nxh5 {[%clk 0:01:45.1]} 18.
g4 {[%clk 0:02:18.2]} 18... Nf6 {[%clk 0:01:43.3]} 19. Ng3 {[%clk 0:02:14.8]}
19... Rac8 {[%clk 0:01:14.4]} 20. Qh2 {[%clk 0:02:14.3]} 20... Qc5 {[%clk
0:01:02.6]} 21. Be3 {[%clk 0:02:09.2]} 21... Qe5 {[%clk 0:00:44.1]} 22. g5
{[%clk 0:02:02.2]} 22... Nh5 {[%clk 0:00:43]} 23. f4 {[%clk 0:02:01.8]} 23...
Qg7 {[%clk 0:00:39]} 24. Nxh5 {[%clk 0:01:57.3]} 24... gxh5 {[%clk 0:00:39.1]}
25. f5 {[%clk 0:01:54.3]} 25... Rc4 {[%clk 0:00:37.3]} 26. Qxh5 {[%clk
0:01:46.6]} 26... d5 {[%clk 0:00:30.9]} 27. e5 {[%clk 0:01:41.3]} 27... Rec8
{[%clk 0:00:24.8]} 28. Rd2 {[%clk 0:01:39.1]} 28... Rxd4 {[%clk 0:00:23.7]} 29.
f6 {[%clk 0:01:28.2]} 29... Qg6 {[%clk 0:00:20.6]} 30. Qxg6+ {[%clk 0:01:27.8]}
30... fxg6 {[%clk 0:00:18]} 31. Bxd4 {[%clk 0:01:28]} 1-0

[Event "*** Titled Tuesday Blitz"]
[Site "Chess.com"]
[Date "2020.04.28"]
[Round "9"]
[White "Gurvich_Vitaly"]
[Black "Barcelona_Guy"]
[Result "1/2-1/2"]
[WhiteElo "2585"]
[BlackElo "2733"]
[TimeControl "180+1"]
[EndTime "11:44:46 PDT"]
[Termination "Game drawn by repetition"]

1. e4 {[%clk 0:03:00.9]} 1... e5 {[%clk 0:02:59.3]} 2. Nf3 {[%clk 0:03:00.4]}
2... Nc6 {[%clk 0:02:59.4]} 3. Bb5 {[%clk 0:03:00.2]} 3... a6 {[%clk 0:02:59.2]}
4. Bxc6 {[%clk 0:03:00.4]} 4... dxc6 {[%clk 0:02:58.9]} 5. O-O {[%clk
0:03:01.3]} 5... Bd6 {[%clk 0:02:59.3]} 6. d4 {[%clk 0:03:00.7]} 6... exd4
{[%clk 0:03:00.2]} 7. Qxd4 {[%clk 0:03:00.7]} 7... f6 {[%clk 0:03:00.7]} 8. Be3
{[%clk 0:02:59.8]} 8... Ne7 {[%clk 0:03:00.6]} 9. Qc3 {[%clk 0:02:59.4]} 9...
Ng6 {[%clk 0:02:51.1]} 10. Nbd2 {[%clk 0:02:59.6]} 10... Be6 {[%clk 0:02:49.9]}
11. Nd4 {[%clk 0:02:58.6]} 11... Bf7 {[%clk 0:02:25.5]} 12. Nf5 {[%clk
0:02:57.3]} 12... O-O {[%clk 0:02:25.5]} 13. Nc4 {[%clk 0:02:52.2]} 13... Be5
{[%clk 0:02:16.7]} 14. Nxe5 {[%clk 0:02:50.6]} 14... fxe5 {[%clk 0:02:14.6]} 15.
Rad1 {[%clk 0:02:48.7]} 15... Qf6 {[%clk 0:02:12.7]} 16. Rd7 {[%clk 0:02:40.4]}
16... Rac8 {[%clk 0:02:08.8]} 17. b3 {[%clk 0:02:08.3]} 17... Be6 {[%clk
0:01:57.3]} 18. Rxg7+ {[%clk 0:02:07.7]} 18... Kh8 {[%clk 0:01:57.7]} 19. Bh6
{[%clk 0:01:53.9]} 19... Bxf5 {[%clk 0:01:40.2]} 20. exf5 {[%clk 0:01:54.8]}
20... Nh4 {[%clk 0:01:36.2]} 21. Rg4 {[%clk 0:01:21.7]} 21... Qxh6 {[%clk
0:01:28.6]} 22. Qxe5+ {[%clk 0:01:21.2]} 22... Rf6 {[%clk 0:01:29]} 23. Rg6
{[%clk 0:00:59.3]} 23... hxg6 {[%clk 0:00:56.7]} 24. Qxf6+ {[%clk 0:00:58.9]}
24... Kh7 {[%clk 0:00:55.6]} 25. Qe7+ {[%clk 0:00:58.6]} 25... Kh8 {[%clk
0:00:51.1]} 26. Qf6+ {[%clk 0:00:49.2]} 26... Kh7 {[%clk 0:00:51.3]} 27. Qe7+
{[%clk 0:00:35.3]} 27... Kh8 {[%clk 0:00:49.6]} 28. Qf6+ {[%clk 0:00:35]}
1/2-1/2

[Event "*** Titled Tuesday Blitz"]
[Site "Chess.com"]
[Date "2020.04.28"]
[Round "9"]
[White "Kosche007"]
[Black "Usurpov"]
[Result "0-1"]
[WhiteElo "2312"]
[BlackElo "2472"]
[TimeControl "180+1"]
[EndTime "11:44:47 PDT"]
[Termination "Usurpov won by resignation"]

1. e4 {[%clk 0:03:00.9]} 1... c5 {[%clk 0:02:53]} 2. Nf3 {[%clk 0:03:00.5]} 2...
e6 {[%clk 0:02:53]} 3. d4 {[%clk 0:03:00.1]} 3... cxd4 {[%clk 0:02:53.9]} 4.
Nxd4 {[%clk 0:03:00.9]} 4... Nf6 {[%clk 0:02:54.2]} 5. Nc3 {[%clk 0:03:00.7]}
5... Nc6 {[%clk 0:02:54.6]} 6. Nxc6 {[%clk 0:02:59.7]} 6... bxc6 {[%clk
0:02:55.5]} 7. Bd3 {[%clk 0:02:59.9]} 7... d5 {[%clk 0:02:55.1]} 8. O-O {[%clk
0:03:00]} 8... Be7 {[%clk 0:02:55.2]} 9. b3 {[%clk 0:02:59.7]} 9... O-O {[%clk
0:02:48.4]} 10. Bb2 {[%clk 0:02:59.5]} 10... c5 {[%clk 0:02:43.9]} 11. Qe2
{[%clk 0:02:37.4]} 11... c4 {[%clk 0:02:06.8]} 12. bxc4 {[%clk 0:02:31.1]} 12...
dxe4 {[%clk 0:02:05.3]} 13. Nxe4 {[%clk 0:02:27.9]} 13... Bb7 {[%clk 0:02:04.6]}
14. Rfd1 {[%clk 0:02:16.8]} 14... Nxe4 {[%clk 0:02:01.3]} 15. Bxe4 {[%clk
0:02:15.7]} 15... Qc7 {[%clk 0:02:01.5]} 16. Be5 {[%clk 0:02:06.6]} 16... Qc8
{[%clk 0:01:58.1]} 17. Bxh7+ {[%clk 0:01:30.7]} 17... Kxh7 {[%clk 0:01:56.8]}
18. Qh5+ {[%clk 0:01:30.6]} 18... Kg8 {[%clk 0:01:53.6]} 19. Bxg7 {[%clk
0:01:30.6]} 19... Kxg7 {[%clk 0:01:50.9]} 20. Qg4+ {[%clk 0:01:29.8]} 20... Kf6
{[%clk 0:01:38.9]} 21. Qh4+ {[%clk 0:00:21.3]} 21... Kg6 {[%clk 0:01:32.5]} 22.
Qxe7 {[%clk 0:00:20.9]} 22... Qc6 {[%clk 0:01:24.6]} 23. f3 {[%clk 0:00:18]}
23... Rac8 {[%clk 0:01:19.4]} 24. Rd4 {[%clk 0:00:16.6]} 24... Qc5 {[%clk
0:01:12.8]} 25. Rd1 {[%clk 0:00:11.9]} 25... Qxe7 {[%clk 0:01:11.7]} 0-1

[Event "*** Titled Tuesday Blitz"]
[Site "Chess.com"]
[Date "2020.04.28"]
[Round "9"]
[White "wonderfultime"]
[Black "temus_galaktionov"]
[Result "1-0"]
[WhiteElo "2947"]
[BlackElo "2780"]
[TimeControl "180+1"]
[EndTime "11:44:51 PDT"]
[Termination "wonderfultime won by resignation"]

1. d4 {[%clk 0:03:00.9]} 1... c6 {[%clk 0:03:00.9]} 2. Nf3 {[%clk 0:02:47.9]}
2... g6 {[%clk 0:03:01.8]} 3. Bf4 {[%clk 0:02:42.4]} 3... Bg7 {[%clk 0:03:02]}
4. e3 {[%clk 0:02:42.9]} 4... d6 {[%clk 0:03:01.1]} 5. Be2 {[%clk 0:02:40.3]}
5... Nd7 {[%clk 0:03:00.5]} 6. h3 {[%clk 0:02:36.3]} 6... e5 {[%clk 0:02:56.4]}
7. Bh2 {[%clk 0:02:36.4]} 7... Qe7 {[%clk 0:02:56]} 8. O-O {[%clk 0:02:33.2]}
8... Ngf6 {[%clk 0:02:54.5]} 9. c4 {[%clk 0:02:33.4]} 9... O-O {[%clk
0:02:53.3]} 10. Nc3 {[%clk 0:02:33.9]} 10... Re8 {[%clk 0:02:50.9]} 11. Qc2
{[%clk 0:02:26.3]} 11... a6 {[%clk 0:02:36]} 12. Rfd1 {[%clk 0:02:20.2]} 12...
h5 {[%clk 0:02:30.5]} 13. Rac1 {[%clk 0:02:19.7]} 13... e4 {[%clk 0:02:27.1]}
14. Nd2 {[%clk 0:02:18.5]} 14... Nf8 {[%clk 0:02:23]} 15. b4 {[%clk 0:01:59.4]}
15... Bf5 {[%clk 0:02:22]} 16. b5 {[%clk 0:01:58.8]} 16... g5 {[%clk 0:02:15.6]}
17. bxc6 {[%clk 0:01:54.6]} 17... bxc6 {[%clk 0:02:16.5]} 18. Qa4 {[%clk
0:01:51]} 18... Rec8 {[%clk 0:02:13.7]} 19. Qa5 {[%clk 0:01:49.6]} 19... Qe6
{[%clk 0:02:08.5]} 20. d5 {[%clk 0:01:45.9]} 20... cxd5 {[%clk 0:02:06.2]} 21.
cxd5 {[%clk 0:01:46.3]} 21... Qe7 {[%clk 0:02:00]} 22. Nc4 {[%clk 0:01:46.5]}
22... Ne8 {[%clk 0:01:50.3]} 23. Na4 {[%clk 0:01:36.2]} 23... Nd7 {[%clk
0:01:31.8]} 24. Bxh5 {[%clk 0:01:29.4]} 24... Rcb8 {[%clk 0:01:10.3]} 25. Be2
{[%clk 0:01:12.6]} 25... Rb5 {[%clk 0:01:07.6]} 26. Qe1 {[%clk 0:01:13]} 26...
Rab8 {[%clk 0:00:57.2]} 27. Na5 {[%clk 0:01:13.1]} 27... Ne5 {[%clk 0:00:47.5]}
28. Nc6 {[%clk 0:01:07.5]} 28... Nxc6 {[%clk 0:00:46.8]} 29. dxc6 {[%clk
0:01:07.8]} 29... Rb4 {[%clk 0:00:43.6]} 30. Nc3 {[%clk 0:01:07.7]} 30... Nc7
{[%clk 0:00:42.4]} 31. Bxd6 {[%clk 0:01:07.2]} 31... Qf6 {[%clk 0:00:31.1]} 32.
Bxc7 {[%clk 0:01:06.4]} 32... Rc8 {[%clk 0:00:31]} 33. Nd5 {[%clk 0:01:06.4]}
1-0

[Event "*** Titled Tuesday Blitz"]
[Site "Chess.com"]
[Date "2020.04.28"]
[Round "9"]
[White "Man-Chuk"]
[Black "sergoy"]
[Result "1-0"]
[WhiteElo "2762"]
[BlackElo "2865"]
[TimeControl "180+1"]
[EndTime "11:44:51 PDT"]
[Termination "Man-Chuk won by resignation"]

1. c4 {[%clk 0:02:59]} 1... Nf6 {[%clk 0:02:56.8]} 2. Nc3 {[%clk 0:02:59.2]}
2... c6 {[%clk 0:02:56.3]} 3. d4 {[%clk 0:02:55.4]} 3... d5 {[%clk 0:02:56.3]}
4. e3 {[%clk 0:02:56]} 4... e6 {[%clk 0:02:54.3]} 5. b3 {[%clk 0:02:56.3]} 5...
Nbd7 {[%clk 0:02:51.4]} 6. Bb2 {[%clk 0:02:56.5]} 6... Bd6 {[%clk 0:02:51.2]} 7.
Bd3 {[%clk 0:02:56.3]} 7... O-O {[%clk 0:02:50.8]} 8. Nge2 {[%clk 0:02:56.9]}
8... b6 {[%clk 0:02:50.9]} 9. Ng3 {[%clk 0:02:57]} 9... Bb7 {[%clk 0:02:50.4]}
10. O-O {[%clk 0:02:56.2]} 10... c5 {[%clk 0:02:50.3]} 11. cxd5 {[%clk
0:02:51.1]} 11... cxd4 {[%clk 0:02:49.7]} 12. Nce4 {[%clk 0:02:51.2]} 12... Nxe4
{[%clk 0:02:21.3]} 13. Nxe4 {[%clk 0:02:46.3]} 13... Nc5 {[%clk 0:02:20.3]} 14.
Nxc5 {[%clk 0:02:12.1]} 14... bxc5 {[%clk 0:02:18.4]} 15. exd4 {[%clk
0:02:07.7]} 15... cxd4 {[%clk 0:02:10.9]} 16. Qh5 {[%clk 0:01:40.5]} 16... g6
{[%clk 0:02:08.9]} 17. Qh6 {[%clk 0:01:24.2]} 17... e5 {[%clk 0:02:07.9]} 18. f4
{[%clk 0:01:23.4]} 18... Re8 {[%clk 0:01:24.3]} 19. fxe5 {[%clk 0:01:18.9]}
19... Bxe5 {[%clk 0:00:55.5]} 20. Rxf7 {[%clk 0:01:15.9]} 20... Kxf7 {[%clk
0:00:17.1]} 21. Qxh7+ {[%clk 0:01:15.6]} 21... Kf6 {[%clk 0:00:09.2]} 22. Rf1+
{[%clk 0:01:14.8]} 22... Bf4 {[%clk 0:00:09.6]} 23. Bxd4+ {[%clk 0:01:08.2]} 1-0

[Event "*** Titled Tuesday Blitz"]
[Site "Chess.com"]
[Date "2020.04.28"]
[Round "9"]
[White "godsgonnacutudown"]
[Black "mfwagnerpeixoto"]
[Result "1-0"]
[WhiteElo "2352"]
[BlackElo "2191"]
[TimeControl "180+1"]
[EndTime "11:44:53 PDT"]
[Termination "godsgonnacutudown won by resignation"]

1. Nf3 {[%clk 0:02:56.4]} 1... c5 {[%clk 0:02:58.4]} 2. c4 {[%clk 0:02:56.7]}
2... g6 {[%clk 0:02:57.1]} 3. d4 {[%clk 0:02:57.1]} 3... cxd4 {[%clk 0:02:54.8]}
4. Nxd4 {[%clk 0:02:57.6]} 4... Bg7 {[%clk 0:02:53.1]} 5. e4 {[%clk 0:02:55.9]}
5... Nc6 {[%clk 0:02:52.1]} 6. Be3 {[%clk 0:02:56.3]} 6... Nf6 {[%clk
0:02:50.8]} 7. Nc3 {[%clk 0:02:56.9]} 7... O-O {[%clk 0:02:49.2]} 8. Be2 {[%clk
0:02:57.4]} 8... d6 {[%clk 0:02:48.2]} 9. O-O {[%clk 0:02:57.9]} 9... Nxd4
{[%clk 0:02:48]} 10. Bxd4 {[%clk 0:02:57.5]} 10... Bd7 {[%clk 0:02:47.8]} 11. c5
{[%clk 0:02:50.7]} 11... Bc6 {[%clk 0:02:30.6]} 12. cxd6 {[%clk 0:02:47.6]}
12... exd6 {[%clk 0:02:31.5]} 13. Bd3 {[%clk 0:02:48.1]} 13... Re8 {[%clk
0:02:28.7]} 14. Qf3 {[%clk 0:02:47.7]} 14... Nd7 {[%clk 0:02:21.9]} 15. Bxg7
{[%clk 0:02:37.6]} 15... Kxg7 {[%clk 0:02:22.8]} 16. Rac1 {[%clk 0:02:38.2]}
16... Ne5 {[%clk 0:02:22]} 17. Qh3 {[%clk 0:02:37.7]} 17... h5 {[%clk
0:02:17.5]} 18. Be2 {[%clk 0:02:34.9]} 18... Qb6 {[%clk 0:02:12.9]} 19. b3
{[%clk 0:02:34.4]} 19... Rad8 {[%clk 0:02:02.3]} 20. Qg3 {[%clk 0:02:32.6]}
20... Rh8 {[%clk 0:01:46.1]} 21. Bxh5 {[%clk 0:02:18.7]} 21... Rxh5 {[%clk
0:01:42.9]} 22. Rfd1 {[%clk 0:02:12.5]} 22... Qb4 {[%clk 0:01:34.3]} 23. f4
{[%clk 0:02:12.4]} 23... Qb6+ {[%clk 0:01:28.1]} 24. Kh1 {[%clk 0:02:12.7]}
24... Nd7 {[%clk 0:01:16.8]} 25. Rxd6 {[%clk 0:02:11]} 25... Rdh8 {[%clk
0:01:11.1]} 26. h3 {[%clk 0:02:09.6]} 26... Nf6 {[%clk 0:01:06.7]} 27. f5 {[%clk
0:02:09.9]} 27... g5 {[%clk 0:00:47.4]} 28. Qe5 {[%clk 0:01:52.4]} 28... R8h6
{[%clk 0:00:45.6]} 29. Nd5 {[%clk 0:01:52.2]} 29... Qf2 {[%clk 0:00:39.2]} 30.
Qc3 {[%clk 0:01:51]} 30... Bxd5 {[%clk 0:00:34.6]} 31. Rxd5 {[%clk 0:01:51.3]}
31... g4 {[%clk 0:00:32.8]} 32. Rd2 {[%clk 0:01:33.9]} 32... Qf4 {[%clk
0:00:21.8]} 33. e5 {[%clk 0:01:34]} 33... gxh3 {[%clk 0:00:14.3]} 34. exf6+
{[%clk 0:01:33.5]} 34... Kh7 {[%clk 0:00:14.9]} 35. g3 {[%clk 0:01:32.9]} 35...
Qxg3 {[%clk 0:00:13.6]} 36. Qxg3 {[%clk 0:01:33]} 1-0

[Event "*** Titled Tuesday Blitz"]
[Site "Chess.com"]
[Date "2020.04.28"]
[Round "9"]
[White "Chuchofrio1"]
[Black "Tsubasa"]
[Result "1-0"]
[WhiteElo "2256"]
[BlackElo "2402"]
[TimeControl "180+1"]
[EndTime "11:44:55 PDT"]
[Termination "Chuchofrio1 won on time"]

1. e4 {[%clk 0:02:59.9]} 1... e6 {[%clk 0:02:59.9]} 2. d4 {[%clk 0:02:59.9]}
2... d5 {[%clk 0:02:59.7]} 3. Nc3 {[%clk 0:03:00.5]} 3... Bb4 {[%clk 0:02:56.1]}
4. a3 {[%clk 0:02:59.8]} 4... Bxc3+ {[%clk 0:02:54.4]} 5. bxc3 {[%clk
0:03:00.7]} 5... dxe4 {[%clk 0:02:54.7]} 6. Qg4 {[%clk 0:03:01]} 6... Nf6 {[%clk
0:02:52.7]} 7. Qxg7 {[%clk 0:03:01.1]} 7... Rg8 {[%clk 0:02:52.9]} 8. Qh6 {[%clk
0:03:01.3]} 8... c5 {[%clk 0:02:44.8]} 9. Bb5+ {[%clk 0:02:58.5]} 9... Bd7
{[%clk 0:02:40.4]} 10. Bxd7+ {[%clk 0:02:57.4]} 10... Nbxd7 {[%clk 0:02:37.5]}
11. Bd2 {[%clk 0:02:47.3]} 11... Rxg2 {[%clk 0:02:31.6]} 12. Nh3 {[%clk
0:02:42.4]} 12... Rg6 {[%clk 0:02:09.6]} 13. Qh4 {[%clk 0:02:36.9]} 13... Qc7
{[%clk 0:02:04.7]} 14. Bf4 {[%clk 0:02:28.5]} 14... Qc6 {[%clk 0:01:59.7]} 15.
Be3 {[%clk 0:02:19.5]} 15... cxd4 {[%clk 0:01:54.3]} 16. cxd4 {[%clk 0:02:20.4]}
16... Qxc2 {[%clk 0:01:52.7]} 17. Rc1 {[%clk 0:02:20.9]} 17... Qa4 {[%clk
0:01:44.9]} 18. Nf4 {[%clk 0:02:17.1]} 18... Rg4 {[%clk 0:01:38.4]} 19. Qh3
{[%clk 0:02:10.4]} 19... Qa5+ {[%clk 0:01:35]} 20. Bd2 {[%clk 0:02:08.1]} 20...
Qf5 {[%clk 0:01:30.1]} 21. Qe3 {[%clk 0:01:56.9]} 21... Nb6 {[%clk 0:01:08.2]}
22. h3 {[%clk 0:01:49]} 22... Rg8 {[%clk 0:01:02.5]} 23. Qb3 {[%clk 0:01:43.9]}
23... Nh5 {[%clk 0:00:48.1]} 24. Rc5 {[%clk 0:01:41.7]} 24... Nd5 {[%clk
0:00:30.5]} 25. Nxd5 {[%clk 0:01:40.9]} 25... exd5 {[%clk 0:00:30.6]} 26. Rxd5
{[%clk 0:01:40.6]} 26... Qf3 {[%clk 0:00:30]} 27. Re5+ {[%clk 0:01:33.7]} 27...
Kf8 {[%clk 0:00:22.6]} 28. Bh6+ {[%clk 0:01:32.8]} 28... Rg7 {[%clk 0:00:22.7]}
29. Qxf3 {[%clk 0:01:26.7]} 29... exf3 {[%clk 0:00:20.5]} 30. Rxh5 {[%clk
0:01:26.8]} 30... Kg8 {[%clk 0:00:18.4]} 31. Bxg7 {[%clk 0:01:26.1]} 1-0